[Event "24th Barcelona Open-A 2019"]
[Site "Barcelona"]
[Date "2019.10.02"]
[Round "6.1"]
[White "Ivanisevic, Ivan"]
[Black "Donchenko, Alexander"]
[Result "0-1"]
[ECO "A22"]
[WhiteElo "2618"]
[BlackElo "2631"]
[Annotator "ChessBase"]
[PlyCount "180"]
[EventDate "2019.09.27"]
[EventType "swiss"]
[EventCountry "ESP"]
[SourceTitle "playchess.com"]
[Source "ChessBase"]
[SourceQuality "1"]
[TimeControl "5400+30"]

1. c4 {[%emt 0:00:00]} Nf6 {[%emt 0:02:08]} 2. Nc3 {[%emt 0:00:00]} e5 {[%emt 0:00:38]} 3. g3 {[%emt 0:00:00]} Bb4 {[%emt 0:00:45]} 4. e4 {[%emt 0:00:07]} d6 {[%emt 0:03:17]} 5. Nge2 {[%emt 0:03:29]} Nc6 {[%emt 0:02:52]} 6. Bg2 {[%emt 0:00:36]} Bg4 {[%emt 0:04:28]} 7. h3 {[%emt 0:08:07]} Bxe2 {[%emt 0:00:33]} 8. Nxe2 {[%emt 0:00:06]} Bc5 {[%emt 0:02:05]} 9. a3 {[%emt 0:00:52]} a5 {[%emt 0:00:57]} 10. d3 {[%emt 0:00:39]} Nd4 {[%emt 0:04:48]} 11. Nc3 {[%emt 0:00:09]} c6 {[%emt 0:03:52]} 12. O-O {[%emt 0:01:08]} Qb6 {[%emt 0:05:28]} 13. Na4 {[%emt 0:09:51]} Qb3 {[%emt 0:00:25]} 14. Be3 {[%emt 0:00:27]} Ba7 {[%emt 0:02:43]} 15. Rb1 {[%emt 0:10:01]} Qxd1 {[%emt 0:09:33]} 16. Rfxd1 {[%emt 0:03:08]} Nb3 {[%emt 0:00:24]} 17. Bxa7 {[%emt 0:07:12]} Rxa7 {[%emt 0:01:02]} 18. f4 {[%emt 0:00:05]} Nd7 {[%emt 0:09:25]} 19. Kf2 {[%emt 0:01:34]} Ke7 {[%emt 0:01:43]} 20. Bf3 {[%emt 0:00:24]} Rb8 {[%emt 0:07:58]} 21. Ke3 {[%emt 0:03:15]} b5 {[%emt 0:01:19]} 22. cxb5 {[%emt 0:01:09]} Rxb5 {[%emt 0:00:12]} 23. Bg4 {[%emt 0:04:50]} Ndc5 {[%emt 0:01:32]} 24. Nc3 {[%emt 0:01:44]} Rb8 {[%emt 0:00:18]} 25. Rf1 {[%emt 0:01:23]} Rab7 {[%emt 0:01:34]} 26. Rf2 {[%emt 0:00:45]} f6 {[%emt 0:01:35]} 27. h4 {[%emt 0:04:12]} Rd8 {[%emt 0:01:56]} 28. Bf3 {[%emt 0:08:56]} Nd4 {[%emt 0:02:33]} 29. Bg4 {[%emt 0:01:58]} Rdb8 {[%emt 0:02:46]} 30. Bd1 {[%emt 0:00:52]} Rd8 {[%emt 0:01:32]} 31. Bg4 {[%emt 0:03:51]} Rdb8 {[%emt 0:09:33]} 32. Bd1 {[%emt 0:01:16]} Nb5 {[%emt 0:00:46]} 33. Nxb5 {[%emt 0:01:42]} Rxb5 {[%emt 0:00:05]} 34. h5 {[%emt 0:14:32]} d5 {[%emt 0:04:19]} 35. fxe5 {[%emt 0:00:06]} fxe5 {[%emt 0:00:06]} 36. exd5 {[%emt 0:05:22]} cxd5 {[%emt 0:00:06]} 37. Rc2 {[%emt 0:00:11]} d4+ {[%emt 0:03:28]} 38. Kd2 {[%emt 0:00:03]} Kd6 {[%emt 0:01:04]} 39. Be2 {[%emt 0:00:45]} h6 {[%emt 0:01:12]} 40. Bg4 {[%emt 0:02:25]} Na4 {[%emt 0:06:51]} 41. b4 {[%emt 0:01:46]} Nc3 {[%emt 0:01:16]} 42. Rxc3 {[%emt 0:00:53]} dxc3+ {[%emt 0:00:02]} 43. Kxc3 {[%emt 0:00:06]} axb4+ {[%emt 0:00:05]} 44. axb4 {[%emt 0:00:04]} R5b6 {[%emt 0:00:11]} 45. Bf5 {[%emt 0:00:43]} Rc6+ {[%emt 0:00:16]} 46. Kd2 {[%emt 0:00:05]} Rf8 {[%emt 0:01:31]} 47. g4 {[%emt 0:00:09]} Rb6 {[%emt 0:00:50]} 48. Kc3 {[%emt 0:00:39]} Rfb8 {[%emt 0:00:23]} 49. Rb2 {[%emt 0:00:29]} R8b7 {[%emt 0:00:09]} 50. Rb1 {[%emt 0:01:14]} Rc7+ {[%emt 0:00:37]} 51. Kd2 {[%emt 0:00:06]} Kd5 {[%emt 0:00:09]} 52. Be4+ {[%emt 0:01:03]} Kd4 {[%emt 0:00:25]} 53. b5 {[%emt 0:00:16]} Rf7 {[%emt 0:01:39]} 54. Ke2 {[%emt 0:00:33]} Ra7 {[%emt 0:00:22]} 55. Kf3 {[%emt 0:00:26]} Ra3 {[%emt 0:00:42]} 56. Rb4+ {[%emt 0:00:41]} Kc5 {[%emt 0:00:27]} 57. Rc4+ {[%emt 0:00:09]} Kd6 {[%emt 0:00:34]} 58. g5 {[%emt 0:00:11]} hxg5 {[%emt 0:00:30]} 59. Kg4 {[%emt 0:00:08]} Ra1 {[%emt 0:00:39]} 60. Kxg5 {[%emt 0:00:20]} Rg1+ {[%emt 0:00:08]} 61. Kf5 Rxb5 {[%emt 0:00:19]} 62. Rc6+ {[%emt 0:00:43]} Ke7 {[%emt 0:00:21]} 63. Rc7+ {[%emt 0:00:26]} Kd6 {[%emt 0:01:14]} 64. Rc6+ {[%emt 0:00:06]} Ke7 {[%emt 0:00:39]} 65. Rc7+ {[%emt 0:00:09]} Kf8 {[%emt 0:00:13]} 66. Ke6 {[%emt 0:02:40]} Rb6+ {[%emt 0:00:33]} 67. Kd5 {[%emt 0:00:25]} Rg5 {[%emt 0:00:48]} 68. Bg6 {[%emt 0:00:29]} Rb8 {[%emt 0:00:18]} 69. Rf7+ {[%emt 0:00:19]} Kg8 {[%emt 0:00:01]} 70. Rd7 {[%emt 0:00:28]} Ra8 {[%emt 0:00:21]} 71. Ke6 {[%emt 0:00:23]} Rb8 {[%emt 0:00:48]} 72. Rd5 {[%emt 0:00:46]} Kf8 {[%emt 0:00:36]} 73. d4 {[%emt 0:00:47]} Rb6+ {[%emt 0:00:28]} 74. Kd7 {[%emt 0:00:03]} Rgxg6 {[%emt 0:00:15]} 75. hxg6 {[%emt 0:00:12]} exd4 {[%emt 0:00:07]} 76. Rxd4 {[%emt 0:01:10]} Rxg6 {[%emt 0:00:02]} 77. Rf4+ {[%emt 0:00:08]} Kg8 {[%emt 0:00:09]} 78. Ke7 {[%emt 0:00:05]} Ra6 {[%emt 0:00:20]} 79. Rg4 {[%emt 0:01:14]} g6 {[%emt 0:00:19]} 80. Rg2 {[%emt 0:00:48]} Kg7 {[%emt 0:00:07]} 81. Rg1 {[%emt 0:00:28]} Ra5 {[%emt 0:00:34]} 82. Ke6 {[%emt 0:00:11]} g5 {[%emt 0:00:05]} 83. Rg2 {[%emt 0:01:15]} Kg6 {[%emt 0:00:07]} 84. Rg1 {[%emt 0:00:04]} Ra4 {[%emt 0:00:17]} 85. Ke5 {[%emt 0:00:14]} g4 {[%emt 0:00:06]} 86. Rg2 {[%emt 0:01:33]} Kg5 {[%emt 0:00:06]} 87. Rg1 {[%emt 0:00:04]} Ra3 {[%emt 0:00:21]} 88. Rg2 {[%emt 0:00:42]} g3 {[%emt 0:00:38]} 89. Ke4 {[%emt 0:00:05]} Kg4 {[%emt 0:00:00]} 90. Rg1 {[%emt 0:00:05]} Ra2 {[%emt 0:00:08]} 0-1

[Event "24th Barcelona Open-A 2019"]
[Site "Barcelona"]
[Date "2019.10.02"]
[Round "6.2"]
[White "Kamsky, Gata"]
[Black "Gharamian, Tigran"]
[Result "1/2-1/2"]
[ECO "E11"]
[WhiteElo "2685"]
[BlackElo "2590"]
[Annotator "ChessBase"]
[PlyCount "30"]
[EventDate "2019.09.27"]
[EventType "swiss"]
[EventCountry "ESP"]
[SourceTitle "playchess.com"]
[Source "ChessBase"]
[SourceQuality "1"]
[TimeControl "5400+30"]

1. d4 {[%emt 0:01:10]} Nf6 {[%emt 0:00:00]} 2. Nf3 {[%emt 0:00:26]} e6 {[%emt 0:00:10]} 3. c4 {[%emt 0:00:06]} Bb4+ {[%emt 0:00:33]} 4. Bd2 {[%emt 0:00:05]} c5 {[%emt 0:00:32]} 5. g3 {[%emt 0:16:13]} Qb6 {[%emt 0:08:27]} 6. Bg2 {[%emt 0:05:44]} Nc6 {[%emt 0:20:39]} 7. d5 {[%emt 0:06:26]} exd5 {[%emt 0:08:10]} 8. cxd5 {[%emt 0:00:05]} Nxd5 {[%emt 0:00:17]} 9. O-O {[%emt 0:01:42]} Nde7 {[%emt 0:02:13]} 10. e4 {[%emt 0:03:59]} d6 {[%emt 0:07:01]} 11. Be3 {[%emt 0:22:20]} Qc7 {[%emt 0:04:28]} 12. a3 {[%emt 0:00:40]} Ba5 {[%emt 0:00:07]} 13. Nbd2 {[%emt 0:08:24]} Bxd2 {[%emt 0:04:21]} 14. Qxd2 {[%emt 0:00:08]} Bg4 {[%emt 0:00:08]} 15. b4 {[%emt 0:09:38]} Bxf3 {[%emt 0:03:49]} 1/2-1/2

[Event "24th Barcelona Open-A 2019"]
[Site "Barcelona"]
[Date "2019.10.02"]
[Round "6.3"]
[White "Shevchenko, Kirill"]
[Black "Lagarde, Maxime"]
[Result "0-1"]
[ECO "B33"]
[WhiteElo "2541"]
[BlackElo "2657"]
[Annotator "ChessBase"]
[PlyCount "148"]
[EventDate "2019.09.27"]
[EventType "swiss"]
[EventCountry "ESP"]
[SourceTitle "playchess.com"]
[Source "ChessBase"]
[SourceQuality "1"]
[TimeControl "5400+30"]

1. e4 {[%emt 0:00:00]} c5 {[%emt 0:00:00]} 2. Nf3 {[%emt 0:00:00]} e6 {[%emt 0:00:00]} 3. d4 {[%emt 0:00:11]} cxd4 {[%emt 0:00:00]} 4. Nxd4 {[%emt 0:00:04]} Nf6 {[%emt 0:00:00]} 5. Nc3 {[%emt 0:00:09]} Nc6 {[%emt 0:00:03]} 6. Ndb5 {[%emt 0:00:50]} d6 {[%emt 0:00:08]} 7. Bf4 {[%emt 0:00:39]} e5 {[%emt 0:00:05]} 8. Bg5 {[%emt 0:00:06]} a6 {[%emt 0:00:04]} 9. Na3 {[%emt 0:00:04]} b5 {[%emt 0:00:08]} 10. Nd5 {[%emt 0:01:52]} Be7 {[%emt 0:01:13]} 11. Bxf6 {[%emt 0:00:08]} Bxf6 {[%emt 0:00:06]} 12. c3 {[%emt 0:00:11]} Ne7 {[%emt 0:00:14]} 13. Nxf6+ {[%emt 0:04:55]} gxf6 {[%emt 0:00:05]} 14. Nc2 {[%emt 0:07:53]} Bb7 {[%emt 0:08:37]} 15. Bd3 {[%emt 0:01:51]} d5 {[%emt 0:03:21]} 16. Qe2 {[%emt 0:12:07]} f5 {[%emt 0:12:51]} 17. exf5 {[%emt 0:27:54]} e4 {[%emt 0:00:36]} 18. f6 {[%emt 0:02:25]} Nf5 {[%emt 0:11:46]} 19. O-O-O {[%emt 0:12:44]} Qxf6 {[%emt 0:01:25]} 20. Ne3 {[%emt 0:09:53]} Nxe3 {[%emt 0:15:54]} 21. Qxe3 {[%emt 0:00:08]} b4 {[%emt 0:00:31]} 22. Bc2 {[%emt 0:01:56]} bxc3 {[%emt 0:00:43]} 23. Qxc3 {[%emt 0:01:00]} Qxc3 {[%emt 0:02:47]} 24. bxc3 {[%emt 0:00:02]} Rc8 {[%emt 0:00:30]} 25. Kb2 {[%emt 0:01:49]} Rc5 {[%emt 0:01:13]} 26. Bb3 {[%emt 0:01:36]} Ke7 {[%emt 0:01:45]} 27. Rd4 {[%emt 0:04:52]} Rg8 {[%emt 0:05:10]} 28. g3 {[%emt 0:00:39]} Rgc8 {[%emt 0:03:55]} 29. Rc1 {[%emt 0:00:41]} a5 {[%emt 0:01:55]} 30. Rcd1 {[%emt 0:03:55]} Rxc3 {[%emt 0:03:39]} 31. R1d2 {[%emt 0:00:19]} f5 {[%emt 0:08:45]} 32. Bxd5 {[%emt 0:01:26]} a4 {[%emt 0:00:05]} 33. a3 Ba6 {[%emt 0:01:18]} 34. g4 {[%emt 0:04:05]} Bd3 {[%emt 0:00:11]} 35. gxf5 {[%emt 0:00:21]} Kf6 {[%emt 0:05:33]} 36. Bxe4 {[%emt 0:00:38]} Rb8+ {[%emt 0:01:11]} 37. Ka2 {[%emt 0:00:34]} Bc4+ {[%emt 0:00:45]} 38. Rxc4 {[%emt 0:00:01]} Rxc4 {[%emt 0:00:05]} 39. f3 {[%emt 0:00:23]} Rb6 {[%emt 0:05:09]} 40. Rd8 {[%emt 0:00:50]} Rc7 {[%emt 0:02:10]} 41. Rf8+ {[%emt 0:00:40]} Rf7 {[%emt 0:00:22]} 42. Rd8 {[%emt 0:00:20]} Rg7 {[%emt 0:00:12]} 43. Rd2 {[%emt 0:00:08]} h5 44. h4 {[%emt 0:00:35]} Rg3 {[%emt 0:01:11]} 45. Rd8 {[%emt 0:00:20]} Rg2+ {[%emt 0:00:52]} 46. Ka1 {[%emt 0:00:01]} Rb3 {[%emt 0:03:04]} 47. Rd6+ {[%emt 0:00:45]} Ke7 {[%emt 0:01:49]} 48. Re6+ {[%emt 0:00:55]} Kd7 {[%emt 0:00:05]} 49. Rg6 {[%emt 0:00:56]} Rxa3+ {[%emt 0:00:58]} 50. Kb1 {[%emt 0:00:01]} Raa2 {[%emt 0:00:37]} 51. Bc6+ {[%emt 0:00:52]} Kc7 {[%emt 0:00:53]} 52. Rxg2 {[%emt 0:00:33]} Rxg2 {[%emt 0:00:04]} 53. Bxa4 {[%emt 0:00:00]} Rh2 {[%emt 0:00:20]} 54. Be8 {[%emt 0:00:58]} Rxh4 {[%emt 0:00:05]} 55. Kc2 {[%emt 0:00:02]} Kd8 {[%emt 0:01:34]} 56. Bg6 {[%emt 0:00:26]} Rc4+ {[%emt 0:01:12]} 57. Kd3 {[%emt 0:00:21]} h4 {[%emt 0:00:13]} 58. Ke2 {[%emt 0:00:59]} Ke7 {[%emt 0:00:57]} 59. Kf2 {[%emt 0:00:51]} Rc2+ {[%emt 0:00:10]} 60. Kg1 {[%emt 0:00:02]} Kf6 {[%emt 0:00:05]} 61. f4 {[%emt 0:00:10]} Rc4 {[%emt 0:00:14]} 62. Kg2 {[%emt 0:00:34]} Rxf4 {[%emt 0:00:04]} 63. Be8 {[%emt 0:00:50]} Rd4 {[%emt 0:01:09]} 64. Bb5 {[%emt 0:00:33]} Rb4 {[%emt 0:01:16]} 65. Bd7 {[%emt 0:00:47]} Rb3 {[%emt 0:00:12]} 66. Kh2 {[%emt 0:00:15]} h3 {[%emt 0:00:39]} 67. Ba4 {[%emt 0:00:44]} Rd3 {[%emt 0:00:41]} 68. Bb5 {[%emt 0:00:12]} Rf3 {[%emt 0:00:17]} 69. Bc6 {[%emt 0:00:42]} Re3 {[%emt 0:00:35]} 70. Bd7 {[%emt 0:00:45]} Kg5 {[%emt 0:00:28]} 71. f6 {[%emt 0:00:02]} Kh4 {[%emt 0:00:07]} 72. f7 {[%emt 0:00:12]} Re2+ {[%emt 0:00:13]} 73. Kg1 {[%emt 0:00:14]} h2+ {[%emt 0:00:11]} 74. Kh1 {[%emt 0:00:03]} Kg3 {[%emt 0:00:07]} 0-1

[Event "24th Barcelona Open-A 2019"]
[Site "Barcelona"]
[Date "2019.10.02"]
[Round "6.4"]
[White "Perunovic, Milos"]
[Black "Moussard, Jules"]
[Result "1-0"]
[ECO "B94"]
[WhiteElo "2569"]
[BlackElo "2608"]
[Annotator "ChessBase"]
[PlyCount "93"]
[EventDate "2019.09.27"]
[EventType "swiss"]
[EventCountry "ESP"]
[SourceTitle "playchess.com"]
[Source "ChessBase"]
[SourceQuality "1"]
[TimeControl "5400+30"]

1. e4 {[%emt 0:00:00]} c5 {[%emt 0:00:00]} 2. Nf3 {[%emt 0:00:06]} d6 {[%emt 0:00:00]} 3. d4 {[%emt 0:00:28]} cxd4 {[%emt 0:00:00]} 4. Nxd4 {[%emt 0:00:11]} Nf6 {[%emt 0:00:00]} 5. Nc3 {[%emt 0:00:11]} a6 {[%emt 0:00:00]} 6. Bg5 {[%emt 0:04:15]} Nbd7 {[%emt 0:00:15]} 7. Bc4 {[%emt 0:09:49]} Qb6 8. O-O {[%emt 0:01:31]} Qc5 {[%emt 0:04:34]} 9. Bd5 e6 {[%emt 0:02:26]} 10. Re1 {[%emt 0:00:30]} Ne5 {[%emt 0:03:54]} 11. Bb3 {[%emt 0:29:41]} Be7 {[%emt 0:03:20]} 12. Be3 {[%emt 0:06:05]} Qc7 {[%emt 0:02:13]} 13. Qe2 {[%emt 0:06:49]} b5 {[%emt 0:02:42]} 14. a3 {[%emt 0:01:19]} O-O {[%emt 0:07:31]} 15. Rad1 {[%emt 0:04:57]} Rb8 16. Bc1 {[%emt 0:02:45]} Re8 {[%emt 0:18:06]} 17. Kh1 {[%emt 0:03:01]} Bf8 {[%emt 0:04:02]} 18. h3 {[%emt 0:05:10]} Bb7 {[%emt 0:11:54]} 19. f4 {[%emt 0:03:26]} Nc6 20. Nf3 Na5 {[%emt 0:02:09]} 21. Ba2 {[%emt 0:04:44]} Nc4 22. e5 Nd5 {[%emt 0:07:17]} 23. Nxd5 {[%emt 0:04:40]} Bxd5 {[%emt 0:00:04]} 24. b3 {[%emt 0:02:09]} Nb6 {[%emt 0:00:55]} 25. Bb1 Rbd8 {[%emt 0:04:24]} 26. Bb2 {[%emt 0:03:22]} Qb7 27. Rf1 dxe5 {[%emt 0:09:03]} 28. Nxe5 {[%emt 0:02:01]} f6 29. Ng4 {[%emt 0:01:03]} f5 {[%emt 0:04:33]} 30. Ne5 {[%emt 0:00:24]} Rc8 {[%emt 0:00:42]} 31. Kh2 {[%emt 0:01:44]} Rc7 32. Rd3 {[%emt 0:00:06]} Be4 {[%emt 0:01:05]} 33. Rg3 Nd5 {[%emt 0:01:09]} 34. c4 {[%emt 0:01:38]} Nf6 {[%emt 0:02:50]} 35. Ba2 {[%emt 0:01:51]} a5 36. Rd1 {[%emt 0:00:05]} b4 {[%emt 0:03:09]} 37. a4 {[%emt 0:01:33]} Bc5 {[%emt 0:02:40]} 38. Nd3 {[%emt 0:00:12]} Bxd3 39. Rgxd3 {[%emt 0:00:14]} Ne4 {[%emt 0:00:58]} 40. Rd8 {[%emt 0:00:04]} Rce7 {[%emt 0:01:21]} 41. Bb1 {[%emt 0:00:29]} Bb6 {[%emt 0:03:20]} 42. R1d7 Rxd7 43. Rxe8+ {[%emt 0:00:35]} Kf7 {[%emt 0:02:31]} 44. Rh8 {[%emt 0:00:47]} Kg6 45. Qf3 {[%emt 0:01:03]} Kh6 {[%emt 0:01:19]} 46. Bxe4 {[%emt 0:00:54]} Qxe4 {[%emt 0:00:46]} 47. Qg3 {[%emt 0:00:11]} 1-0

[Event "24th Barcelona Open-A 2019"]
[Site "Barcelona"]
[Date "2019.10.02"]
[Round "6.5"]
[White "Svane, Rasmus"]
[Black "Sosa, Tomas"]
[Result "1/2-1/2"]
[ECO "D38"]
[WhiteElo "2592"]
[BlackElo "2524"]
[Annotator "ChessBase"]
[PlyCount "173"]
[EventDate "2019.09.27"]
[EventType "swiss"]
[EventCountry "ESP"]
[SourceTitle "playchess.com"]
[Source "ChessBase"]
[SourceQuality "1"]
[TimeControl "5400+30"]

1. d4 {[%emt 0:54:06]} d5 {[%emt 1:05:39]} 2. c4 {[%emt 0:00:30]} e6 {[%emt 0:00:30]} 3. Nc3 {[%emt 0:00:30]} Nf6 {[%emt 0:00:30]} 4. Nf3 {[%emt 0:00:30]} Bb4 {[%emt 0:00:30]} 5. Bd2 {[%emt 0:00:30]} c5 {[%emt 0:00:30]} 6. a3 {[%emt 0:00:30]} Bxc3 {[%emt 0:00:30]} 7. Bxc3 {[%emt 0:00:30]} Ne4 {[%emt 0:00:30]} 8. e3 {[%emt 0:00:30]} Nxc3 {[%emt 0:00:30]} 9. bxc3 {[%emt 0:00:30]} Qa5 {[%emt 0:00:30]} 10. Qd2 {[%emt 0:00:30]} O-O {[%emt 0:00:30]} 11. cxd5 {[%emt 0:00:30]} exd5 {[%emt 0:00:30]} 12. Bd3 {[%emt 0:00:30]} Nd7 {[%emt 0:00:30]} 13. O-O {[%emt 0:00:30]} b6 {[%emt 0:00:30]} 14. Rfb1 {[%emt 0:00:30]} Ba6 {[%emt 0:00:30]} 15. Bxa6 {[%emt 0:00:30]} Qxa6 {[%emt 0:00:30]} 16. Rc1 {[%emt 0:01:16]} Rfe8 {[%emt 0:03:00]} 17. Rab1 {[%emt 0:03:24]} g6 {[%emt 0:03:08]} 18. h3 {[%emt 0:10:35]} Red8 {[%emt 0:04:23]} 19. dxc5 {[%emt 0:03:30]} Nxc5 {[%emt 0:00:30]} 20. Qb2 {[%emt 0:00:30]} d4 {[%emt 0:00:30]} 21. Nxd4 {[%emt 0:03:26]} Qc4 {[%emt 0:01:22]} 22. Qb4 {[%emt 0:05:18]} Qd5 {[%emt 0:03:44]} 23. a4 {[%emt 0:05:34]} Ne4 {[%emt 0:02:24]} 24. c4 {[%emt 0:03:00]} Qg5 {[%emt 0:00:05]} 25. Nf3 {[%emt 0:02:00]} Qf6 {[%emt 0:08:46]} 26. a5 {[%emt 0:00:03]} bxa5 27. Qxa5 Nd2 {[%emt 0:01:52]} 28. Nxd2 {[%emt 0:01:23]} Rxd2 {[%emt 0:00:02]} 29. Rf1 {[%emt 0:00:58]} Rad8 {[%emt 0:00:34]} 30. Qxa7 {[%emt 0:01:14]} Rc2 {[%emt 0:00:35]} 31. Qc5 Rdd2 {[%emt 0:00:58]} 32. Rb8+ {[%emt 0:00:52]} Kg7 {[%emt 0:00:36]} 33. Qc8 {[%emt 0:01:06]} Qd6 {[%emt 0:00:41]} 34. Qh8+ {[%emt 0:00:30]} Kh6 {[%emt 0:00:30]} 35. Qg8 {[%emt 0:00:30]} Rd1 {[%emt 0:00:36]} 36. Rb1 {[%emt 0:00:59]} Rxf1+ {[%emt 0:00:32]} 37. Rxf1 {[%emt 0:00:34]} Qe7 {[%emt 0:00:15]} 38. Rd1 {[%emt 0:00:30]} Rxc4 {[%emt 0:00:30]} 39. g3 {[%emt 0:00:24]} Rb4 {[%emt 0:00:45]} 40. Qh8 {[%emt 0:00:40]} f6 41. Qc8 {[%emt 0:00:21]} Rb2 {[%emt 0:00:56]} 42. Rd4 {[%emt 0:00:30]} Rb1+ {[%emt 0:00:31]} 43. Kh2 {[%emt 0:00:14]} Rb7 {[%emt 0:00:17]} 44. Qg8 {[%emt 0:00:43]} Rb4 45. Rd2 {[%emt 0:00:42]} Rb1 {[%emt 0:00:50]} 46. Qc8 {[%emt 0:00:11]} Rb7 {[%emt 0:00:36]} 47. Rc2 {[%emt 0:00:33]} Kg7 {[%emt 0:00:42]} 48. Rc6 {[%emt 0:00:24]} Ra7 49. Qb8 {[%emt 0:00:30]} Qd7 {[%emt 0:01:05]} 50. Rc8 {[%emt 0:00:41]} Qf7 51. h4 {[%emt 0:00:30]} Rd7 {[%emt 0:00:57]} 52. Qf4 {[%emt 0:00:42]} Qa2 {[%emt 0:00:37]} 53. Rc5 {[%emt 0:00:30]} Qe6 54. Rc2 {[%emt 0:00:18]} Qd5 {[%emt 0:00:41]} 55. Rc8 {[%emt 0:00:30]} Qb7 {[%emt 0:00:31]} 56. Rc5 {[%emt 0:00:21]} Qb6 57. Rc8 {[%emt 0:00:06]} Qb7 {[%emt 0:00:15]} 58. Rc4 {[%emt 0:00:36]} Qb6 {[%emt 0:01:25]} 59. h5 {[%emt 0:00:15]} g5 {[%emt 0:00:30]} 60. Qf5 {[%emt 0:00:59]} Re7 61. Rc8 {[%emt 0:00:42]} Qd6 {[%emt 0:01:01]} 62. Ra8 {[%emt 0:00:20]} Qc6 {[%emt 0:00:32]} 63. Rd8 {[%emt 0:00:37]} Qe6 {[%emt 0:00:29]} 64. Qc5 {[%emt 0:00:38]} Rf7 65. Qd4 {[%emt 0:00:20]} Qf5 {[%emt 0:01:03]} 66. Kg2 {[%emt 0:00:46]} g4 67. Rd5 {[%emt 0:00:04]} Qf3+ {[%emt 0:00:48]} 68. Kg1 {[%emt 0:01:00]} Rc7 {[%emt 0:00:41]} 69. Qd2 {[%emt 0:00:02]} Rc1+ {[%emt 0:00:30]} 70. Qxc1 {[%emt 0:00:30]} Qxd5 {[%emt 0:00:00]} 71. Qc7+ {[%emt 0:00:43]} Kh6 {[%emt 0:00:02]} 72. Qf4+ {[%emt 0:00:30]} Qg5 {[%emt 0:00:30]} 73. Qc7 {[%emt 0:00:20]} Qxh5 {[%emt 0:00:22]} 74. e4 {[%emt 0:00:28]} Kg6 75. Qe7 {[%emt 0:00:13]} Qb5 {[%emt 0:02:05]} 76. Qe6 {[%emt 0:00:40]} Qe2 {[%emt 0:00:04]} 77. Qg8+ {[%emt 0:00:15]} Kh6 {[%emt 0:00:07]} 78. Qf8+ {[%emt 0:00:22]} Kg6 79. Qe8+ {[%emt 0:00:42]} Kh6 {[%emt 0:00:43]} 80. Qe6 {[%emt 0:00:30]} Qd1+ {[%emt 0:00:11]} 81. Kh2 {[%emt 0:00:00]} Qf3 {[%emt 0:00:09]} 82. Qb6 {[%emt 0:00:15]} Kg5 {[%emt 0:01:15]} 83. Qc5+ {[%emt 0:00:18]} Kg6 {[%emt 0:00:27]} 84. Qc2 {[%emt 0:00:12]} Kg7 {[%emt 0:00:19]} 85. Kg1 {[%emt 0:00:18]} Kg8 {[%emt 0:00:02]} 86. Qc4+ {[%emt 0:00:11]} Kg7 {[%emt 0:00:45]} 87. Qd5 {[%emt 0:01:22]} 1/2-1/2

[Event "24th Barcelona Open-A 2019"]
[Site "Barcelona"]
[Date "2019.10.02"]
[Round "6.6"]
[White "Edouard, Romain"]
[Black "Del Rio De Angelis, Salvador G."]
[Result "0-1"]
[ECO "A45"]
[WhiteElo "2640"]
[BlackElo "2488"]
[Annotator "ChessBase"]
[PlyCount "94"]
[EventDate "2019.09.27"]
[EventType "swiss"]
[EventCountry "ESP"]
[SourceTitle "playchess.com"]
[Source "ChessBase"]
[SourceQuality "1"]
[TimeControl "5400+30"]

1. d4 {[%emt 0:00:00]} Nf6 {[%emt 0:00:00]} 2. Bf4 {[%emt 0:00:00]} c5 {[%emt 0:01:14]} 3. d5 {[%emt 0:00:09]} b5 {[%emt 0:01:17]} 4. f3 {[%emt 0:01:55]} g6 {[%emt 0:01:58]} 5. e4 {[%emt 0:00:10]} Bg7 {[%emt 0:00:31]} 6. Bxb5 {[%emt 0:03:51]} Nh5 {[%emt 0:04:19]} 7. Bd2 {[%emt 0:00:15]} Bxb2 {[%emt 0:00:23]} 8. Nc3 {[%emt 0:00:09]} Bxa1 {[%emt 0:02:13]} 9. Qxa1 {[%emt 0:00:08]} O-O {[%emt 0:08:10]} 10. g4 {[%emt 0:00:56]} Nf6 {[%emt 0:00:14]} 11. d6 {[%emt 0:01:32]} Nc6 {[%emt 0:06:21]} 12. Bg5 {[%emt 0:15:30]} Nd4 {[%emt 0:06:37]} 13. dxe7 {[%emt 0:03:02]} Qxe7 {[%emt 0:00:11]} 14. Nd5 {[%emt 0:00:08]} Nxd5 {[%emt 0:05:17]} 15. Bxe7 {[%emt 0:00:09]} Nxc2+ {[%emt 0:02:18]} 16. Kd2 {[%emt 0:00:16]} Nxa1 {[%emt 0:00:05]} 17. exd5 {[%emt 0:03:29]} Rb8 {[%emt 0:02:01]} 18. Bd3 {[%emt 0:02:25]} Rb2+ {[%emt 0:08:40]} 19. Kc3 {[%emt 0:01:25]} Rxa2 {[%emt 0:00:06]} 20. Bxc5 {[%emt 0:04:13]} d6 {[%emt 0:03:04]} 21. Bb1 {[%emt 0:02:57]} Rg2 {[%emt 0:00:51]} 22. Bxd6 {[%emt 0:01:45]} Rd8 {[%emt 0:00:25]} 23. Bg3 {[%emt 0:00:46]} Rxd5 {[%emt 0:03:22]} 24. Nh3 {[%emt 0:00:08]} Rc5+ {[%emt 0:05:15]} 25. Kb4 {[%emt 0:01:16]} Rc6 {[%emt 0:00:06]} 26. Nf2 {[%emt 0:01:16]} Nc2+ {[%emt 0:06:58]} 27. Kb5 {[%emt 0:02:25]} Bd7 {[%emt 0:02:08]} 28. Ka5 {[%emt 0:00:12]} Rc5+ {[%emt 0:05:29]} 29. Ka6 {[%emt 0:00:04]} Nb4+ {[%emt 0:00:06]} 30. Kb7 {[%emt 0:01:20]} Bc6+ {[%emt 0:00:33]} 31. Kxa7 {[%emt 0:00:09]} Bxf3 {[%emt 0:00:09]} 32. Re1 {[%emt 0:00:03]} Rc8 {[%emt 0:01:24]} 33. g5 {[%emt 0:00:32]} Bc6 {[%emt 0:01:42]} 34. Kb6 {[%emt 0:01:16]} Nd5+ {[%emt 0:02:24]} 35. Kc5 {[%emt 0:00:01]} Nc3 {[%emt 0:00:17]} 36. Kd4 {[%emt 0:01:05]} Bb5 {[%emt 0:00:27]} 37. Bd3 {[%emt 0:00:36]} Bxd3 {[%emt 0:01:14]} 38. Kxd3 {[%emt 0:00:10]} Nd5 {[%emt 0:02:07]} 39. Ra1 {[%emt 0:00:01]} f5 {[%emt 0:01:40]} 40. gxf6 {[%emt 0:00:21]} Nxf6 {[%emt 0:00:47]} 41. Ke2 {[%emt 0:00:02]} Rc3 {[%emt 0:03:24]} 42. Ra8+ {[%emt 0:04:02]} Kg7 {[%emt 0:00:08]} 43. Ra7+ {[%emt 0:00:03]} Kh6 {[%emt 0:00:17]} 44. Rf7 {[%emt 0:00:20]} Ng4 {[%emt 0:01:00]} 45. Kf1 {[%emt 0:00:21]} Rgxg3 {[%emt 0:00:59]} 46. hxg3 {[%emt 0:00:04]} Rc1+ {[%emt 0:00:09]} 47. Kg2 {[%emt 0:00:05]} Rc2 {[%emt 0:00:03]} 0-1